bitfinex/quotes_ETHUSD_20250129
["timestamp","ask_amount","ask_price","bid_price","bid_amount"]
[1738167430747,3.24214,3084.4,3083.8,0.46925099]
[1738167430952,3.24214,3084.4,3083.8,3.71192099]
[1738167431148,0.66200111,3084.5,3084.0,3.24248]
[1738167431350,3.2417,3084.8,3084.1,4.04925]
[1738167431654,3.2417,3084.8,3084.1,4.16421186]
[1738167431878,3.24205,3084.5,3084.1,0.92186186]
[1738167432108,3.24181,3084.7,3084.1,0.92186186]
[1738167432313,3.24194,3084.6,3084.1,0.92186186]
[1738167432509,3.24192,3084.6,3084.1,4.16429186]
[1738167432713,3.24181,3084.7,3084.1,4.16429186]
[1738167432990,3.87968161,3085.1,3084.3,3.24222]
[1738167433233,3.2415,3085.0,3084.4,0.03242022]
[1738167433398,3.24201,3084.5,3084.4,0.11445941]
[1738167433728,3.24275,3083.8,3083.4,1.1326]
[1738167433945,3.24285,3083.8,3083.5,0.1106802]
[1738167434090,3.24285,3083.8,3083.4,1.1326]
[1738167434091,3.24235,3084.2,3083.6,3.24294]
[1738167434291,3.24235,3084.2,3083.7,0.11053657]
[1738167434542,0.324235,3084.2,3083.4,1.1326]
[1738167434743,3.24259,3084.0,3083.5,0.11078073]
[1738167435045,3.24265,3083.9,3083.5,0.36]
[1738167435189,3.24265,3083.9,3083.6,0.11071278]
[1738167435586,3.24285,3083.7,3083.6,0.11071278]
[1738167435861,3.8914,3083.7,3083.6,0.11071278]
[1738167436003,3.24306,3083.5,3083.1,3.7984]
[1738167436199,3.8914,3083.7,3083.6,0.11071278]
[1738167436445,3.24309,3083.5,3083.1,0.7984]
[1738167437047,3.24303,3083.6,3083.1,0.7984]
[1738167437347,1.083435,3084.2,3083.1,0.7984]
[1738167437348,3.24307,3083.5,3083.1,0.7984]
[1738167438114,3.24319,3083.4,3083.1,0.7984]
[1738167438590,3.24303,3083.6,3083.1,0.7984]
[1738167438791,3.2429,3083.7,3083.1,4.04186]
[1738167439199,3.24309,3083.5,3083.1,0.7984]
[1738167439647,3.24319,3083.4,3083.1,0.7984]
[1738167439828,3.24309,3083.5,3083.1,0.7984]
[1738167440024,3.24317,3083.4,3083.1,0.7984]
[1738167440233,3.2439,3082.8,3082.7,0.8168]
[1738167440534,3.24391,3082.7,3082.3,0.8168]
[1738167440694,3.24397,3082.7,3082.3,0.8168]
[1738167441033,3.24383,3082.8,3082.3,0.8168]
[1738167441193,3.24372,3082.9,3082.3,0.8168]
[1738167441501,3.24381,3082.8,3082.3,0.8168]
[1738167441701,3.24372,3082.9,3082.3,0.8168]
[1738167441907,3.24383,3082.8,3082.3,0.8168]
[1738167442110,3.24391,3082.7,3082.3,0.8168]
[1738167442331,3.24417,3082.5,3082.3,0.8168]
[1738167442528,3.24391,3082.7,3082.3,0.8168]
[1738167443098,3.24378,3082.9,3082.3,4.06112]
[1738167443299,3.24369,3083.0,3082.3,0.8168]
[1738167443498,3.2438,3082.8,3082.3,0.8168]
[1738167443697,3.2438,3082.8,3082.1,0.005]
[1738167443698,4.07433,3082.2,3082.1,0.005]
[1738167444006,3.24527,3081.4,3081.3,0.1594233]
[1738167444329,4.07517,3081.4,3081.3,0.2675763]
[1738167444527,4.07517,3081.4,3081.3,0.1594233]
[1738167444732,4.807203,3081.4,3081.3,0.1594233]
[1738167445301,4.807203,3081.4,3079.9,2.7822]
[1738167445302,0.7837,3079.8,3078.6,3.3727651]
[1738167445527,3.24678,3080.0,3079.2,0.7974]
[1738167445827,0.1,3080.9,3079.2,0.7974]
[1738167445828,0.7837,3080.6,3079.3,0.10551456]
[1738167446027,3.24663,3080.2,3079.3,3.30295456]
[1738167446233,3.24675,3080.0,3079.4,1.10879346]
[1738167446405,0.7837,3080.6,3079.4,0.374]
[1738167446605,3.24682,3080.0,3079.5,0.10369314]
[1738167447005,0.7837,3080.6,3079.5,0.10369314]
[1738167447341,3.24781,3079.0,3078.2,0.1644233]
[1738167447634,0.63521749,3079.6,3078.3,0.10462445]
[1738167447821,3.24779,3079.1,3078.4,0.378]
[1738167448019,0.46974175,3079.6,3078.4,0.378]
[1738167448223,0.46974175,3079.6,3078.5,0.10448034]
[1738167448418,3.24728,3079.5,3078.5,0.10448034]
[1738167448621,3.24729,3079.5,3078.5,0.10448034]
[1738167448938,3.24736,3079.5,3078.5,0.378]
[1738167449110,3.24767,3079.2,3078.6,0.1044083]
[1738167449430,1.47385988,3079.7,3078.6,0.1044083]
[1738167449431,3.24812,3078.7,3078.6,0.1044083]
[1738167449597,3.897738,3078.7,3078.6,0.1044083]
[1738167450002,3.24854,3078.3,3078.2,0.1644233]
[1738167450451,3.24854,3078.3,3078.2,0.26911982]
[1738167450604,3.24842,3078.5,3077.6,0.01010101]
[1738167450605,3.24917,3077.7,3077.6,0.01010101]
[1738167450802,3.24907,3077.8,3077.6,0.01010101]
[1738167451034,3.24905,3077.9,3077.6,0.11174044]
[1738167451231,4.00937,3077.7,3077.6,1.01e-06]
[1738167451432,7.10937,3077.7,3077.6,1.01e-06]
[1738167451632,4.0158,3077.2,3077.1,0.005]
[1738167451845,8.632337,3077.2,3077.1,1e-05]
[1738167452191,7.742337,3077.2,3077.1,1e-05]
[1738167452355,7.01601,3077.0,3076.9,1e-05]
[1738167452670,4.02351,3077.0,3076.9,1e-05]
[1738167452814,3.24973,3077.2,3076.9,1e-05]
[1738167453012,3.24991,3077.0,3076.9,1e-05]
[1738167453361,4.07631,3077.0,3076.9,1e-05]
[1738167453508,4.06131,3077.0,3076.9,1e-05]
[1738167453861,3.25081,3076.2,3075.1,0.1594233]
[1738167454060,0.8114,3076.1,3075.1,0.1594233]
[1738167454271,3.25173,3075.3,3075.2,0.09513057]
[1738167454562,3.25173,3075.3,3075.1,0.09433058]
[1738167454563,4.71942382,3075.2,3075.1,0.09433058]
[1738167454768,3.25205,3075.0,3073.8,0.7837]
[1738167455045,3.25244,3074.7,3073.8,0.7837]
[1738167455257,0.8065,3073.4,3073.2,0.62770126]
[1738167455484,0.8065,3073.9,3073.2,0.62770126]
[1738167455629,0.325244,3074.6,3073.4,3.25362]
[1738167455808,3.25159,3075.5,3074.5,3.25254]
[1738167456012,3.25159,3075.5,3074.3,0.7837]
[1738167456013,0.8065,3075.7,3074.3,0.7837]
[1738167456246,0.8065,3075.7,3073.8,0.2]
[1738167456247,3.25097,3076.0,3074.1,3.25297]
[1738167456519,0.8065,3075.5,3073.1,0.63756959]
[1738167456710,0.8065,3075.5,3073.7,3.25332]
[1738167456953,3.25182,3075.2,3073.8,0.325332]
[1738167457137,3.25225,3074.8,3073.8,0.325332]
[1738167457340,3.25225,3074.8,3073.8,3.578612]
[1738167457537,3.25235,3074.7,3073.8,0.325332]
[1738167457847,0.63561924,3075.3,3073.8,0.325332]
[1738167458148,0.38872992,3075.2,3073.9,5.40980299]
[1738167458456,0.8065,3076.0,3074.4,3.25256]
[1738167458614,3.25136,3075.7,3074.1,0.55]
[1738167458814,3.25161,3075.4,3074.5,3.25252]
[1738167459043,6.50551618,3075.8,3073.9,0.391]
[1738167459215,3.25172,3075.3,3074.3,0.7837]
[1738167459419,3.25172,3075.3,3074.5,3.25255]
[1738167459640,3.57681062,3075.7,3074.4,0.55]
[1738167459842,6.50549618,3075.8,3074.5,6.50512]
[1738167460051,6.50549618,3075.8,3074.9,3.25209]
[1738167460248,6.50549618,3075.8,3075.0,3.25193]
[1738167460559,3.2513,3075.7,3074.8,3.25222]
[1738167460753,6.50552618,3075.8,3075.0,3.25198]
[1738167460961,3.25131,3075.7,3075.0,3.25198]
[1738167461157,4.06080618,3076.6,3075.1,0.7837]
[1738167461343,3.25063,3076.4,3075.5,3.2514]
[1738167461559,3.25063,3076.4,3075.7,3.25124]
[1738167461761,3.25079,3076.2,3075.5,3.6424]
[1738167461924,3.25063,3076.4,3075.5,0.391]
[1738167462328,0.1684145,3076.5,3075.6,0.07912638]
[1738167462329,3.25066,3076.3,3075.6,0.07912638]
[1738167462469,3.4188745,3076.5,3075.6,0.07912638]
[1738167462470,0.1684145,3076.5,3075.6,0.07912638]
[1738167462638,3.4189145,3076.5,3075.6,0.07912638]
[1738167462833,0.1684145,3076.5,3075.6,0.07912638]
[1738167463037,0.1684145,3076.5,3076.0,3.25097]
[1738167463370,3.25430618,3076.6,3076.2,3.25075]
[1738167463598,3.25430618,3076.6,3076.3,0.07848621]
[1738167464053,3.25430618,3076.6,3076.1,4.04015]
[1738167464251,0.401583,3077.2,3076.4,0.07841406]
[1738167464601,0.401583,3077.2,3076.1,0.7893]
[1738167464602,3.25043,3076.6,3076.1,0.7893]
[1738167464743,3.25011,3076.9,3076.2,3.25066]
[1738167465067,3.24351549,3076.7,3076.3,0.07848621]
[1738167465465,3.25011,3076.9,3076.1,4.04014]
[1738167465659,3.25024,3076.7,3076.4,0.07841406]
[1738167465872,3.25024,3076.7,3076.1,4.04014]
[1738167466043,3.25024,3076.7,3076.5,0.07834191]
[1738167466245,3.25024,3076.7,3076.1,0.7893]
[1738167466447,3.25024,3076.7,3076.6,0.07826977]
[1738167466648,3.25024,3076.7,3076.1,0.7893]
[1738167466868,3.25024,3076.7,3076.6,0.07826977]
[1738167467205,3.24984,3077.1,3076.6,0.07826977]
[1738167467349,3.25003,3076.9,3076.1,4.04015]
[1738167467551,3.25015,3076.8,3076.2,3.32931837]
[1738167467747,0.16828496,3077.1,3076.4,3.25054]
[1738167468067,3.24928,3077.6,3076.6,3.25031]
[1738167468271,3.24928,3077.6,3076.5,0.07839975]
[1738167468272,3.24984,3077.1,3076.5,0.07839975]
[1738167468460,3.25014,3076.8,3076.7,0.07803572]
[1738167468664,3.25014,3076.8,3076.6,0.07810785]
[1738167468993,3.24994,3077.0,3076.7,0.07803572]
[1738167469353,3.24994,3077.0,3076.3,3.25065]
[1738167469665,3.25004,3076.9,3076.4,0.07825214]
[1738167470773,3.2502,3076.8,3076.4,0.07825214]
[1738167470952,3.24998,3077.0,3076.4,0.07825214]
[1738167471292,3.24961,3077.3,3076.7,3.25023]
[1738167471650,3.24961,3077.3,3076.8,0.07796358]
[1738167471851,0.16827443,3077.5,3076.8,3.32807358]
[1738167472045,0.16827443,3077.5,3076.9,3.24999]
[1738167472296,3.24968,3077.3,3076.8,0.07796358]
[1738167472445,3.24958,3077.4,3077.0,0.07781933]
[1738167472650,3.24958,3077.4,3076.9,0.07789146]
[1738167472851,3.24958,3077.4,3076.5,3.25041]
[1738167473076,3.24967,3077.3,3076.6,3.25029]
[1738167473348,3.24967,3077.3,3076.6,3.32839785]
[1738167473796,3.24981,3077.1,3076.6,0.07810785]
[1738167474008,3.24963,3077.3,3076.7,0.393]
[1738167474211,3.25013,3076.8,3076.7,0.07803572]
[1738167474358,3.25013,3076.8,3076.5,0.393]
[1738167474893,3.24949,3077.4,3076.6,0.07810785]
[1738167474894,3.25011,3076.9,3076.6,0.07810785]
[1738167475095,3.25023,3076.7,3076.6,0.07810785]
[1738167475495,3.24995,3077.0,3076.2,0.391]
[1738167475716,3.25023,3076.7,3076.6,0.07810785]
[1738167475921,3.25041,3076.6,3076.1,0.7893]
[1738167476197,3.25065,3076.3,3076.2,0.07839645]
[1738167476566,3.25065,3076.3,3075.7,1.2066]
[1738167476768,3.25065,3076.3,3075.8,0.07860418]
[1738167476964,3.25065,3076.3,3075.7,4.45785]
[1738167477173,3.25065,3076.3,3075.8,0.07870054]
[1738167477572,3.25024,3076.7,3075.8,0.45365505]
[1738167477774,3.25009,3076.9,3076.1,0.84210581]
[1738167477973,3.25015,3076.8,3076.2,3.2507]
[1738167478195,3.24985,3077.1,3076.4,3.25052]
[1738167478404,3.25005,3076.9,3076.2,0.07846581]
[1738167478601,3.25026,3076.7,3076.5,0.07824935]
[1738167479108,3.25026,3076.7,3076.3,35.0]
[1738167479600,3.25005,3076.9,3076.4,0.07819045]
[1738167479962,3.25005,3076.9,3076.1,3.25084]
[1738167480169,3.24983,3077.1,3076.4,3.25046]
[1738167480363,3.24992,3077.0,3076.5,0.07815685]
[1738167480606,3.25034,3076.6,3076.5,0.07815685]
[1738167480778,3.25034,3076.6,3075.1,5.8259]
[1738167480993,4.41720324,3076.3,3075.2,1.2615088]
[1738167481202,3.25171,3075.3,3075.2,0.0763088]
[1738167481411,3.25166,3075.4,3075.2,0.0763088]
[1738167481588,3.25171,3075.3,3075.2,0.0763088]
[1738167481901,3.576729,3075.5,3075.2,0.0763088]
[1738167482223,3.25041,3076.6,3075.4,3.25158]
[1738167482421,3.25085,3076.2,3075.6,3.25139]
[1738167482786,3.2505,3076.5,3075.9,3.25101]
[1738167482985,3.2505,3076.5,3076.0,0.07573131]
[1738167483417,3.25014,3076.8,3076.2,3.25074]
[1738167483621,3.25014,3076.8,3076.0,0.07573131]
[1738167483622,3.25031,3076.7,3076.3,35.0]
[1738167483827,3.25034,3076.6,3076.3,35.07551482]
[1738167484393,6.50078,3076.6,3076.3,0.07551482]
[1738167484588,0.650078,3076.6,3075.6,0.8119]
[1738167484791,6.50428618,3077.0,3075.7,35.46794783]
[1738167484994,3.25052,3076.5,3075.9,3.25106]
[1738167485205,3.25052,3076.5,3076.0,0.07573131]
[1738167485524,3.25430618,3077.0,3075.7,35.392]
[1738167485525,3.25028,3076.7,3075.9,3.25106]
[1738167485703,3.25036,3076.6,3076.1,0.07565914]
[1738167485899,3.25019,3076.8,3076.2,3.25069]
[1738167486103,3.25007,3076.9,3076.3,35.0]
[1738167486305,3.25032,3076.7,3076.3,0.07551482]
[1738167486513,0.66300821,3077.1,3076.0,3.25091]
[1738167486514,3.25007,3076.9,3076.0,3.25091]
[1738167486720,3.25019,3076.8,3076.4,0.07544267]
[1738167486924,3.25019,3076.8,3076.4,35.0]
[1738167487125,3.25019,3076.8,3076.5,0.07540129]
[1738167487493,3.24997,3077.0,3076.5,0.07540129]
[1738167487690,3.24997,3077.0,3076.5,3.25039]
[1738167487913,3.24976,3077.2,3076.6,0.9082253]
[1738167488505,3.24954,3077.4,3076.7,3.25014]
[1738167488722,3.24932,3077.6,3076.6,0.9082253]
[1738167488922,3.24932,3077.6,3076.8,3.32531103]
[1738167489146,3.24932,3077.6,3077.0,3.24985]
[1738167489320,3.25430618,3077.3,3077.2,3.24961]
[1738167489520,3.25430618,3077.3,3077.2,4.656262]
[1738167489719,3.25430618,3077.3,3077.2,5.28097767]
[1738167489927,3.25430618,3077.3,3077.2,8.28097767]
[1738167490546,3.25430618,3077.3,3077.2,7.73097767]
[1738167490713,3.25430618,3077.3,3077.2,4.48202567]
[1738167491053,3.25430618,3077.3,3077.2,39.48202567]
[1738167491345,3.25430618,3077.3,3077.2,40.03202567]
[1738167491546,3.25430618,3077.3,3077.2,43.03202567]
[1738167492648,3.8023231,3077.6,3077.2,43.03202567]
[1738167492649,3.25430618,3077.6,3077.5,3.24939]
[1738167492842,3.25430618,3077.6,3077.3,3.2495]
[1738167493028,3.25430618,3077.6,3077.5,0.0712073]
[1738167493225,3.25430618,3077.6,3077.3,3.6525]
[1738167493425,3.25430618,3077.6,3076.5,0.8028]
[1738167493752,3.41759441,3077.5,3077.4,0.0712794]
[1738167494049,3.41759441,3077.5,3076.5,0.8028]
[1738167494050,3.24988,3077.1,3076.5,0.8028]
[1738167494352,3.24992,3077.0,3076.5,0.8028]
[1738167494548,3.25015,3076.8,3076.6,0.07185637]
[1738167494751,3.24993,3077.0,3076.6,0.07185637]
[1738167494942,3.574923,3077.0,3076.4,3.25053]
[1738167495252,3.24976,3077.2,3076.4,3.2505]
[1738167495414,3.24987,3077.1,3076.5,0.07192851]
[1738167495614,3.24992,3077.0,3076.5,0.07192851]
[1738167495870,3.25004,3076.9,3076.5,0.07192851]
[1738167496070,3.25015,3076.8,3076.5,0.07192851]
[1738167496422,3.24995,3077.0,3076.5,0.07192851]
[1738167496835,0.8132,3077.1,3076.5,0.07192851]
[1738167496836,3.24983,3077.1,3076.5,3.25042]
[1738167497045,3.25008,3076.9,3076.2,3.25069]
[1738167497240,3.25008,3076.9,3076.1,4.02777]
[1738167497418,3.25008,3076.9,3076.3,3.25065]
[1738167497614,3.25016,3076.8,3076.2,3.25076]
[1738167497819,6.50039,3076.8,3076.1,4.02776]
[1738167498061,3.575176,3076.8,3076.2,3.25073]
[1738167498365,3.24996,3077.0,3076.1,0.777]
[1738167498583,3.25009,3076.9,3076.3,3.25056]
[1738167498722,0.65041362,3077.1,3076.3,3.25056]
[1738167499066,3.25430618,3076.6,3076.3,3.25056]
[1738167499356,3.25430618,3076.6,3076.3,6.50115]
[1738167499646,3.25430618,3076.6,3076.3,3.25056]
[1738167499814,3.25430618,3076.6,3076.5,3.25044]
[1738167500221,3.25430618,3076.6,3076.5,35.0]
[1738167500421,3.25430618,3076.6,3076.5,38.25044]
[1738167500656,3.25430618,3076.6,3076.5,35.0]
[1738167500829,3.25430618,3076.6,3076.2,3.25072]
[1738167501231,3.25430618,3076.6,3076.3,3.25056]
[1738167501431,3.25430618,3076.6,3076.3,38.25056]
[1738167501627,3.25430618,3076.6,3076.5,3.25044]
[1738167502154,3.25430618,3076.6,3076.2,3.25072]
[1738167502458,3.25430618,3076.6,3076.3,35.0]
[1738167502623,6.50460618,3076.7,3076.3,35.0]
[1738167502955,3.25430618,3076.7,3076.3,38.25065]
[1738167503150,3.25430618,3076.7,3076.6,3.25034]
[1738167503556,3.25430618,3076.7,3076.4,3.25047]
[1738167504049,3.25430618,3076.7,3076.5,3.25043]
[1738167504232,3.25430618,3076.7,3076.6,3.25034]
[1738167504432,3.25430618,3076.7,3076.5,3.25043]
[1738167504829,3.25430618,3076.7,3076.6,3.25034]
[1738167505152,3.25430618,3076.7,3076.6,5.276017]
[1738167506452,0.64430324,3077.7,3076.9,3.24993]
[1738167506658,3.24957,3077.4,3076.8,3.25006]
[1738167506821,3.24928,3077.6,3076.9,3.25001]
[1738167507021,3.24928,3077.6,3076.9,3.24995]
[1738167507243,0.38935832,3077.5,3076.9,3.24995]
[1738167507550,3.63883832,3077.5,3076.9,3.24995]
[1738167507756,3.63883832,3077.5,3076.9,3.24994]
[1738167508263,0.38935832,3077.5,3076.9,3.24994]
[1738167508557,3.24951,3077.4,3076.9,3.24994]
[1738167508853,3.24998,3077.0,3076.4,0.394]
[1738167509022,0.7554,3077.2,3076.4,0.394]
[1738167509224,3.24997,3077.0,3076.5,3.25043]
[1738167509453,0.16823076,3077.4,3076.9,3.24999]
[1738167509755,4.96592946,3077.5,3077.3,3.24953]
[1738167509955,4.96592946,3077.5,3077.4,4.04229]
[1738167510142,4.96592946,3077.5,3077.4,4.11400281]
[1738167511756,4.96592946,3077.5,3077.4,4.85036309]
[1738167512162,4.96592946,3077.5,3077.4,4.11400281]
[1738167512319,4.96592946,3077.5,3077.4,0.86451281]
[1738167512660,4.96592946,3077.5,3077.4,1.25951281]
[1738167512963,4.96592946,3077.5,3077.4,0.46671281]
[1738167513654,4.96592946,3077.5,3077.4,3.71620281]
[1738167514262,8.71191241,3077.5,3077.4,0.07171281]
[1738167514423,9.53561241,3077.5,3077.4,0.07171281]
[1738167514624,3.24991,3077.0,3076.9,0.394]
[1738167514986,6.4996,3077.2,3076.9,0.46548658]
[1738167515278,3.2498,3077.2,3076.9,0.46548658]
[1738167515429,4.20310124,3077.4,3076.9,0.46548658]
[1738167515623,4.20310124,3077.4,3076.9,0.394]
[1738167515869,0.95356124,3077.4,3076.9,3.24999]
[1738167516027,3.24974,3077.2,3076.8,0.393]
[1738167516225,3.24974,3077.2,3076.9,0.07148658]
[1738167516465,0.56109736,3077.3,3076.9,0.07148658]
[1738167516881,3.24972,3077.2,3076.9,0.07148658]
[1738167517230,0.56109736,3077.3,3076.9,35.07148658]
[1738167517582,3.24981,3077.2,3076.9,0.07148658]
[1738167517879,3.63090074,3077.2,3076.9,0.07148658]
[1738167518159,0.38109074,3077.2,3076.9,0.07148658]
[1738167518335,3.81070736,3077.3,3076.9,0.07148658]
[1738167518336,4.16081938,3077.5,3076.9,0.07148658]
[1738167518677,4.96592946,3077.1,3076.9,3.32146658]
[1738167518864,4.96592946,3077.1,3076.9,0.07148658]
[1738167519936,4.96592946,3077.1,3077.0,3.24991]
[1738167520135,4.96592946,3077.1,3077.0,0.7503]
[1738167520336,4.96592946,3077.1,3077.0,3.32132446]
[1738167521242,4.96592946,3077.1,3077.0,0.45941446]
[1738167521651,4.96592946,3077.1,3077.0,3.70932446]
[1738167522353,4.96592946,3077.1,3077.0,4.25932446]
[1738167522579,4.96592946,3077.1,3077.0,7.90950747]
[1738167522751,4.96592946,3077.1,3077.0,10.90950747]
[1738167522960,3.33656168,3077.1,3077.0,10.90950747]
[1738167524608,3.33656168,3077.1,3077.0,6.70932446]
[1738167524887,3.33656168,3077.1,3077.0,41.70932446]
[1738167525252,3.33656168,3077.1,3077.0,45.90950747]
[1738167526274,3.33656168,3077.8,3077.0,42.65959747]
[1738167526480,3.33656168,3077.8,3077.7,3.24917]
[1738167526895,3.33656168,3077.8,3077.7,3.32023311]
[1738167527197,3.33656168,3077.8,3077.7,0.07106311]
[1738167527563,3.33656168,3077.8,3077.5,6.49867]
[1738167527781,3.33656168,3077.8,3077.7,0.07106311]
[1738167527983,3.33656168,3077.8,3077.6,0.0711352]
[1738167528196,3.33656168,3077.8,3077.7,0.07106311]
[1738167528392,3.33656168,3077.8,3077.7,3.24917]
[1738167528707,3.33656168,3077.8,3077.7,0.07106311]
[1738167529467,6.58563168,3077.8,3077.7,0.07106311]
[1738167529661,3.33656168,3077.8,3077.5,0.385]
[1738167529863,3.24889,3078.0,3077.7,0.07107078]
[1738167530063,0.4719049,3078.0,3077.6,0.07114287]
[1738167530295,0.4719049,3078.0,3077.8,0.0709987]
[1738167530467,3.24907,3077.8,3077.7,0.07107078]
[1738167530673,3.94606349,3077.8,3077.2,3.63264]
[1738167530873,3.24918,3077.7,3077.2,3.63264]
[1738167531194,3.24929,3077.6,3077.0,3.24982]
[1738167531408,6.49866,3077.6,3076.8,38.25004]
[1738167531575,4.04540535,3077.6,3077.0,3.24982]
[1738167531897,0.7655,3078.1,3077.5,3.24938]
[1738167532097,3.2489,3078.0,3077.3,4.02953]
[1738167532303,3.24922,3077.7,3076.9,4.196]
[1738167532467,3.24894,3078.0,3077.5,3.24931]
[1738167532667,3.73317509,3078.0,3077.5,3.24931]
[1738167532863,0.48423509,3078.0,3077.6,3.24928]
[1738167533096,0.7655,3078.1,3077.7,3.24907]
[1738167533296,0.7779,3078.4,3077.8,3.24905]
[1738167533467,3.24857,3078.3,3077.8,3.24905]
[1738167534069,1.43769059,3078.4,3077.9,3.24896]
[1738167534603,4.81981006,3078.4,3077.9,3.24896]
[1738167534770,1.57135006,3078.4,3077.6,4.02932]
[1738167534966,6.49728,3078.3,3077.7,3.24916]
[1738167535368,3.24878,3078.1,3077.6,3.24922]
[1738167535773,0.7779,3078.4,3077.2,0.7552]
[1738167535971,0.65758089,3078.5,3077.0,3.24987]
[1738167536203,3.24897,3077.9,3077.2,3.24968]
[1738167536504,0.7776,3077.8,3077.2,3.24968]
[1738167536691,3.24944,3077.5,3077.1,0.383]
[1738167537005,4.97887173,3078.2,3077.1,0.383]
[1738167537181,5.75217173,3078.2,3077.1,0.383]
[1738167537383,3.24904,3077.9,3077.3,3.2495]
[1738167537577,3.24904,3077.9,3077.1,0.383]
[1738167537578,3.24888,3078.0,3077.4,3.24941]
[1738167537803,3.24888,3078.0,3077.1,3.63272]
[1738167537804,3.24886,3078.0,3077.1,3.63272]
[1738167538001,3.2491,3077.8,3077.2,3.24962]
[1738167538395,3.2491,3077.8,3077.3,3.24959]
[1738167538704,3.96447061,3077.8,3077.2,6.87925]
[1738167538902,3.24921,3077.7,3077.2,3.62962]
[1738167539108,0.75,3077.6,3076.8,35.0]
[1738167539312,3.34434051,3077.3,3077.1,3.24973]
[1738167539474,3.34434051,3077.3,3076.9,0.38]
[1738167540007,3.34434051,3077.3,3077.1,3.24979]
[1738167540198,3.34434051,3077.3,3077.2,3.2497]
[1738167540507,3.34434051,3077.3,3077.2,3.86895226]
[1738167540703,3.34434051,3077.3,3077.2,4.58082649]
[1738167540908,3.34434051,3077.3,3077.2,5.37712649]
[1738167541616,3.34434051,3077.3,3077.2,8.37712649]
[1738167541915,5.1e-07,3077.3,3077.2,8.37712649]
[1738167542315,5.1e-07,3077.3,3077.2,8.39212649]
[1738167542617,5.1e-07,3077.3,3077.2,45.39212649]
[1738167542803,0.7619,3079.0,3078.6,3.24819]
[1738167543119,0.7619,3079.0,3078.7,0.0680829]
[1738167543415,3.24755,3079.3,3078.8,3.24801]
[1738167543416,0.8128,3079.3,3078.8,3.24801]
[1738167543585,0.8128,3079.8,3079.3,3.24741]
[1738167543781,0.8128,3079.8,3079.3,3.24067548]
[1738167543985,0.16823066,3079.6,3079.4,0.06691141]
[1738167544224,0.8128,3079.8,3079.4,0.06691141]
[1738167545103,0.64302473,3079.6,3079.4,0.06691141]
[1738167545271,0.64302473,3079.6,3079.5,35.0]
[1738167545414,1.1133102,3079.6,3078.9,3.24784]
[1738167545747,3.24663,3080.2,3079.3,0.55]
[1738167545918,3.24663,3080.2,3079.5,3.24722]
[1738167546125,3.90131436,3080.3,3079.7,3.24704]
[1738167546338,3.24655,3080.2,3079.7,3.24704]
[1738167546537,3.24655,3080.2,3079.8,0.0661176]
[1738167546739,0.324655,3080.1,3079.8,0.0661176]
[1738167546938,0.324655,3080.1,3079.7,3.24704]
[1738167547248,0.66421407,3080.5,3079.8,0.0661176]
[1738167547435,4.06747,3081.0,3080.4,3.24633]
[1738167547611,4.06747,3081.0,3080.2,3.63046]
[1738167547818,4.06747,3081.0,3080.5,0.06561403]
[1738167547819,3.24612,3080.6,3080.5,0.06561403]
[1738167548131,3.93571914,3080.6,3080.5,0.06561403]
[1738167548328,3.24636,3080.4,3080.2,0.384]
[1738167548728,3.895331,3080.6,3080.2,0.384]
[1738167548946,3.2463,3080.5,3080.2,0.384]
[1738167549830,3.895331,3080.6,3080.2,0.384]
[1738167550166,4.03203,3080.3,3080.2,0.384]
[1738167550465,3.24655,3080.2,3079.6,3.63115]
[1738167550763,3.24655,3080.2,3079.6,0.384]
[1738167550948,3.24695,3079.9,3079.4,0.385]
[1738167551154,0.324695,3079.8,3079.4,0.385]
[1738167551365,3.571685,3079.8,3079.4,0.385]
[1738167551725,0.324695,3079.8,3079.4,0.385]
[1738167551931,4.0321,3080.3,3079.7,3.24704]
[1738167552157,0.7856,3080.3,3079.6,0.7536]
[1738167552465,3.24622,3080.5,3079.9,3.24683]
[1738167552847,0.8024,3080.6,3079.8,3.24688]
[1738167553168,4.04861,3080.6,3079.9,3.24683]
[1738167553351,0.46827816,3080.5,3079.9,3.24683]
[1738167553549,0.46827816,3080.5,3080.1,3.24662]
[1738167553755,0.46827816,3080.5,3079.9,6.49362]
[1738167554065,0.46827816,3080.5,3079.6,0.7536]
[1738167554066,3.24644,3080.3,3079.8,3.24693]
[1738167554265,0.36503214,3080.2,3079.8,0.382]
[1738167554430,3.24673,3080.1,3079.8,0.382]
[1738167554630,3.571184,3080.2,3079.8,0.382]
[1738167554967,3.571194,3080.2,3079.8,0.382]
[1738167555130,0.6817634,3080.1,3079.8,0.382]
[1738167555550,0.6817634,3080.1,3079.9,0.06310731]
[1738167556240,3.24644,3080.3,3079.9,0.06310731]
[1738167556566,0.8024,3080.6,3079.9,0.06310731]
[1738167556770,4.04859,3080.6,3080.0,3.24673]
[1738167556933,3.41402394,3080.8,3080.0,0.8011]
[1738167557251,1.40800195,3080.9,3080.2,3.24645]
[1738167557252,0.48220259,3080.7,3080.2,3.24645]
[1738167557455,4.65381195,3080.9,3080.4,3.24632]
[1738167557661,4.65381195,3080.9,3080.5,0.06267548]
[1738167557854,3.24606,3080.7,3080.5,0.06267548]
[1738167558045,3.28650814,3080.6,3080.0,39.04779]
[1738167558251,3.93976495,3080.6,3080.1,0.06296335]
[1738167558563,3.24629,3080.5,3080.1,0.06296335]
[1738167558870,3.24575,3081.0,3079.8,0.382]
[1738167558871,3.24576,3081.0,3080.4,3.24632]
[1738167559079,3.24592,3080.8,3080.4,35.0]
[1738167559285,0.324592,3080.7,3080.5,0.06248823]
[1738167559653,3.24576,3081.0,3080.5,0.06248823]
[1738167560965,3.24583,3080.9,3080.5,0.06248823]
[1738167561271,3.24576,3081.0,3080.5,0.06248823]
[1738167561769,3.2458,3080.9,3080.5,0.06248823]
[1738167562138,3.24567,3081.1,3080.5,0.06248823]
[1738167562444,3.24554,3081.2,3080.5,3.30868823]
[1738167562445,0.649121,3081.0,3080.5,3.30868823]